fUST/lending_fUST_20241022
["ID","MTS","AMOUNT","RATE_DAILY","PERIOD"]
[340652895,1729599550443,273.37336231,9.9e-05,2]
[340652896,1729599553831,538.33,0.0002031,120]
[340652897,1729599558255,273.37336231,9.9e-05,2]
[340652898,1729599567238,273.37336231,9.9e-05,2]
[340652899,1729599575084,273.37336231,9.9e-05,2]
[340652900,1729599583176,273.37336231,9.9e-05,2]
[340652901,1729599591079,273.37336231,9.9e-05,2]
[340652902,1729599599174,273.37336231,9.9e-05,2]
[340652903,1729599607579,273.37336231,9.9e-05,2]
[340652904,1729599615800,273.37336231,9.9e-05,2]
[340652905,1729599625076,273.37336231,9.9e-05,2]
[340652906,1729599633131,273.37336231,9.9e-05,2]
[340652907,1729599641085,273.37336231,9.9e-05,2]
[340652908,1729599649029,273.37336231,9.9e-05,2]
[340652909,1729599657003,273.37336231,9.9e-05,2]
[340652910,1729599664775,273.37336231,9.9e-05,2]
[340652911,1729599672713,273.37336231,9.9e-05,2]
[340652912,1729599681321,273.37336231,9.9e-05,2]
[340652913,1729599689695,273.37336231,9.9e-05,2]
[340652914,1729599698829,273.37336231,9.9e-05,2]
[340652915,1729599706661,273.37336231,9.9e-05,2]
[340652916,1729599714759,273.37336231,9.9e-05,2]
[340652917,1729599722790,273.37336231,9.9e-05,2]
[340652918,1729599731392,273.37336231,9.9e-05,2]
[340652919,1729599739407,273.37336231,9.9e-05,2]
[340652920,1729599747685,273.37336231,9.9e-05,2]
[340652921,1729599755544,273.37336231,9.9e-05,2]
[340652922,1729599763838,273.37336231,9.9e-05,2]
[340652923,1729599772238,273.37336231,9.9e-05,2]
[340652924,1729599780309,273.37336231,9.9e-05,2]
[340652925,1729599788213,273.37336231,9.9e-05,2]
[340652926,1729599796350,273.37336231,9.9e-05,2]
[340652927,1729599804286,273.37336231,9.9e-05,2]
[340652928,1729599812392,273.37336231,9.9e-05,2]
[340652929,1729599820238,273.37336231,9.9e-05,2]
[340652930,1729599828888,273.37336231,9.9e-05,2]
[340652931,1729599836850,273.37336231,9.9e-05,2]
[340652932,1729599845573,273.37336231,9.9e-05,2]
[340652933,1729599861168,273.37336231,9.9e-05,2]
[340652934,1729599876587,273.37336231,9.9e-05,2]
[340652935,1729599892873,273.37336231,9.9e-05,2]
[340652937,1729599909808,273.37336231,9.9e-05,2]
[340652939,1729599925580,273.37336231,9.9e-05,2]
[340652940,1729599940855,273.37336231,9.9e-05,2]
[340652941,1729599956137,273.37336231,9.9e-05,2]
[340652942,1729599989738,273.37336231,9.9e-05,2]
[340652943,1729600005056,273.37336231,9.9e-05,2]
[340652944,1729600020973,273.37336231,9.9e-05,2]
[340652945,1729600037466,273.37336231,9.9e-05,2]
[340652946,1729600052827,273.37336231,9.9e-05,2]
[340652947,1729600068687,273.37336231,9.9e-05,2]
[340652948,1729600084704,273.37336231,9.9e-05,2]
[340652949,1729600100579,273.37336231,9.9e-05,2]
[340652954,1729600116407,273.37336231,9.9e-05,2]
[340652959,1729600131711,273.37336231,9.9e-05,2]
[340652960,1729600147939,273.37336231,9.9e-05,2]
[340652970,1729600163802,273.37336231,9.9e-05,2]
[340652979,1729600179126,273.37336231,9.9e-05,2]
[340652982,1729600195652,273.37336231,9.9e-05,2]
[340653027,1729600238685,-500.0,0.0001315,2]
[340653028,1729600238695,-3000.0,0.00013661,2]
[340653029,1729600238704,-200.0,0.00013973,2]
[340653030,1729600238712,-380.0,0.00013973,2]
[340653031,1729600238722,-178.445782,0.0001406,2]
[340653032,1729600238731,-178.445782,0.00014243,2]
[340653033,1729600238740,-178.445782,0.00014426,2]
[340653034,1729600238749,-178.445782,0.00014609,2]
[340653035,1729600238759,-178.445782,0.00014793,2]
[340653036,1729600238768,-465.05606094,0.000149,2]
[340653038,1729600238778,-1165.21006269,0.000149,2]
[340653040,1729600238788,-300.0,0.00014959,2]
[340653041,1729600238797,-300.0,0.0001496,2]
[340653043,1729600238806,-648.92457099,0.00014961,2]
[340653044,1729600238815,-24900.0,0.00014961,2]
[340653046,1729600238825,-6186.36210093,0.00015,2]
[340653047,1729600238837,-1117.51456346,0.00015,2]
[340653048,1729600238846,-154.0,0.0001529,2]
[340653049,1729600238857,-5000.0,0.000158,2]
[340653050,1729600238867,-500.0,0.0001589,2]
[340653051,1729600238876,-250.0,0.0001589,2]
[340653052,1729600238886,-8319.74818958,0.00015941,2]
[340653053,1729600238895,-5044.94,0.00016,2]
[340653054,1729600238904,-508.8207996,0.00016055,2]
[340653055,1729600238914,-243.66196517,0.00016207,2]
[340653056,1729600238923,-243.66196514,0.0001623,2]
[340653057,1729600238933,-243.66196514,0.00016254,2]
[340653058,1729600238942,-4944.35282682,0.00016274,2]
[340653059,1729600238954,-3112.4208254,0.00016274,2]
[340653076,1729600240427,-478.3249995,0.00016274,2]
[340653077,1729600240439,-329.70110389,0.00016274,2]
[340653078,1729600240450,-1410.0001,0.00016274,2]
[340653079,1729600240462,-13739.48302357,0.00016274,2]
[340653080,1729600240471,-243.66196514,0.00016277,2]
[340653081,1729600240480,-166.686702,0.00016277,2]
[340653082,1729600240489,-198.405953,0.00016277,2]
[340653083,1729600240498,-243.66196514,0.000163,2]
[340653084,1729600240507,-626.0,0.000163,2]
[340653085,1729600240516,-600.0,0.00016307,2]
[340653086,1729600240525,-150.94,0.00016313,2]
[340653087,1729600240535,-531.179,0.00016313,2]
[340653088,1729600240544,-1025.843,0.00016313,2]
[340653089,1729600240554,-1804.0,0.00016313,2]
[340653090,1729600240564,-2276.64295654,0.00016338,2]
[340653091,1729600240573,-60044.90948159,0.00016369,2]
[340653092,1729600240594,-33895.204898,0.00016369,2]
[340653111,1729600246319,-3557.95715898,0.00016369,2]
[340653112,1729600246331,-1056.65227158,0.00016369,2]
[340653113,1729600246374,-45829.82153285,0.00016369,2]
[340653114,1729600246383,-29320.17846715,0.00016369,2]
[340653115,1729600260061,221.52,0.00010959,2]
[340653145,1729601323977,154.7541979,0.00011,120]
[340653226,1729601438830,-250.0,0.000125,2]
[340653227,1729601438840,-300.0,0.00013132,2]
[340653228,1729601438850,-330.91059069,0.00013133,2]
[340653229,1729601438862,-24569.08940931,0.00013133,2]
[340653230,1729601438871,-170.234117,0.00013527,2]
[340653231,1729601438880,-170.234117,0.00013598,2]
[340653232,1729601438889,-170.234117,0.00013668,2]
[340653233,1729601438899,-170.234117,0.00013739,2]
[340653234,1729601438909,-170.234117,0.00013809,2]
[340653235,1729601438918,-170.234117,0.0001388,2]
[340653236,1729601438927,-170.234117,0.0001395,2]
[340653237,1729601438938,-195.0,0.00013973,2]
[340653238,1729601438947,-361.0,0.00013973,2]
[340653239,1729601438957,-250.0,0.00014,2]
[340653240,1729601438967,-2000.0,0.00014,2]
[340653241,1729601438975,-170.234117,0.00014021,2]
[340653242,1729601438985,-170.234117,0.00014091,2]
[340653243,1729601438995,-170.234117,0.00014162,2]
[340653244,1729601439005,-170.234117,0.00014232,2]
[340653245,1729601439014,-716.44732697,0.00014232,2]
[340653246,1729601439024,-2000.0,0.0001435,2]
[340653247,1729601439033,-2000.0,0.0001435,2]
[340653248,1729601439043,-420.0,0.000144,2]
[340653249,1729601439052,-3000.0,0.00014405,2]
[340653250,1729601439061,-2000.0,0.0001441,2]
[340653251,1729601439071,-2000.0,0.0001457,2]
[340653252,1729601439080,-2000.0,0.0001467,2]
[340653253,1729601439089,-2000.0,0.0001528,2]
[340653254,1729601439099,-2000.0,0.000155,2]
[340653255,1729601439108,-2000.0,0.0001572,2]
[340653256,1729601439117,-2000.0,0.0001579,2]
[340653257,1729601439128,-587.0,0.0001579,2]
[340653258,1729601439138,-250.0,0.0001589,2]
[340653259,1729601439148,-2000.0,0.000159,2]
[340653260,1729601439157,-170.42366211,0.0001593,2]
[340653261,1729601439167,-2000.0,0.0001596,2]
[340653262,1729601439176,-2000.0,0.0001598,2]
[340653263,1729601439185,-170.42366209,0.0001599,2]
[340653264,1729601439195,-5000.0,0.00016,2]
[340653265,1729601439207,-2000.0,0.00016,2]
[340653266,1729601439217,-2000.0,0.0001603,2]
[340653267,1729601439227,-170.42366209,0.0001605,2]
[340653268,1729601439236,-507.0566396,0.00016055,2]
[340653269,1729601439248,-2000.0,0.0001606,2]
[340653270,1729601439259,-8891.17465365,0.00016073,2]
[340653271,1729601439270,-170.42366209,0.0001611,2]
[340653272,1729601439280,-170.42366209,0.0001617,2]
[340653273,1729601439290,-2000.0,0.0001618,2]
[340653274,1729601439301,-2000.0,0.0001622,2]
[340653275,1729601439311,-150.94,0.00016251,2]
[340653276,1729601439321,-531.179,0.00016251,2]
[340653277,1729601439331,-1152.0,0.00016251,2]
[340653278,1729601439341,-1804.0,0.00016251,2]
[340653279,1729601439351,-171.62656773,0.00016253,2]
[340653280,1729601439363,-175.79573896,0.00016253,2]
[340653281,1729601439374,-19847.1090974,0.00016254,2]
[340653282,1729601439386,-24195.88796891,0.00016254,2]
[340653283,1729601439410,-669.19392819,0.00016254,2]
[340653284,1729601439424,-7951.45374917,0.00016254,2]
[340653285,1729601439439,-7847.85542327,0.00016254,2]
[340653286,1729601439453,-25927.50995836,0.00016254,2]
[340653290,1729601440577,-72443.9362791,0.00016254,2]
[340653291,1729601440586,-2000.0,0.0001626,2]
[340653292,1729601440597,-19847.1090974,0.00016264,2]
[340653293,1729601440608,-23482.29433443,0.00016264,2]
[340653318,1729601446498,-26200.0,0.00016264,2]
[340653320,1729602015121,323.6,0.00022,60]
[340653374,1729602632692,-163.0,0.00013973,2]
[340653376,1729602632702,-237.0,0.00013973,2]
[340653430,1729602640959,-3000.0,0.00014425,2]
[340653431,1729602640969,-200.0,0.00014655,2]
[340653432,1729602640979,-300.0,0.00014742,2]
[340653433,1729602640989,-300.0,0.00014742,2]
[340653434,1729602640998,-24900.0,0.00014743,2]
[340653435,1729602641008,-200.0,0.00015419,2]
[340653436,1729602641017,-465.00056145,0.00015686,2]
[340653437,1729602641027,-1019.55880481,0.0001579,2]
[340653438,1729602641036,-470.22335051,0.0001579,2]
[340653439,1729602641046,-477.63155132,0.0001579,2]
[340653440,1729602641055,-250.0,0.0001589,2]
[340653441,1729602641064,-5000.0,0.00016,2]
[340653442,1729602641074,-8891.17465365,0.00016008,2]
[340653443,1729602641083,-500.0,0.00016055,2]
[340653444,1729602641093,-420.0,0.00016139,2]
[340653445,1729602641104,-2201.41739018,0.00016174,2]
[340653446,1729602641113,-420.0,0.00016217,2]
[340653447,1729602641122,-19683.1040129,0.0001625,2]
[340653448,1729602641132,-49075.22938611,0.0001625,2]
[340653449,1729602641144,-695.50005,0.0001625,2]
[340653459,1729602643845,-1947.0,0.0001625,2]
[340653466,1729602646647,-400.0,0.00013973,2]
[340653467,1729602646656,-49600.0,0.0001625,2]
[340653470,1729602679779,186.77,0.00010959,2]
[340653524,1729603838105,-200.0,0.00013973,2]
[340653525,1729603838115,-380.0,0.00013973,2]
[340653526,1729603838125,-3000.0,0.00014612,2]
[340653527,1729603838135,-300.0,0.00014644,2]
[340653528,1729603838144,-300.0,0.00014644,2]
[340653529,1729603838154,-8316.89276681,0.00014645,2]
[340653536,1729603839990,-671.03,0.00014645,2]
[340653537,1729603840050,-15912.07723319,0.00014645,2]
[340653538,1729603840061,-256.543,0.0001587,2]
[340653539,1729603840070,-250.0,0.0001589,2]
[340653540,1729603840080,-892.1139542,0.00015901,2]
[340653541,1729603840089,-497.97797214,0.00015933,2]
[340653542,1729603840099,-439.23234195,0.00015933,2]
[340653543,1729603840111,-9031.16293909,0.00016,3]
[340653544,1729603840122,-420.0,0.00016033,2]
[340653545,1729603840131,-500.0,0.00016055,2]
[340653546,1729603840142,-8891.17465365,0.0001608,2]
[340653547,1729603840151,-420.0,0.00016108,2]
[340653548,1729603840160,-2048.92207825,0.00016144,2]
[340653549,1729603840169,-6291.91482068,0.00016149,2]
[340653550,1729603840179,-46056.19095354,0.0001615,2]
[340653551,1729603840193,-1000.0,0.00016165,2]
[340653552,1729603840203,-18698.9488123,0.00016195,2]
[340653553,1729603840213,-128156.241067,0.00016195,2]
[340653554,1729603840222,-527.0,0.00016205,2]
[340653555,1729603840233,-1804.0,0.00016205,2]
[340653556,1729603840242,-1027.843,0.00016205,2]
[340653557,1729603840252,-151.0,0.00016233,2]
[340653558,1729603840263,-418.086989,0.00016233,2]
[340653559,1729603840273,-418.086989,0.00016233,2]
[340653560,1729603840282,-418.086989,0.00016233,2]
[340653561,1729603840292,-418.086989,0.00016233,2]
[340653562,1729603840302,-155.841158,0.00016233,2]
[340653563,1729603840312,-155.841158,0.00016233,2]
[340653564,1729603840321,-151.0,0.00016233,2]
[340653565,1729603840330,-151.0,0.00016233,2]
[340653566,1729603840340,-155.841158,0.00016233,2]
[340653567,1729603840350,-155.841158,0.00016233,2]
[340653568,1729603840360,-151.0,0.00016233,2]
[340653569,1729603840369,-151.0,0.00016233,2]
[340653570,1729603840379,-202.483924,0.00016233,2]
[340653571,1729603840388,-202.483924,0.00016233,2]
[340653572,1729603840397,-202.483924,0.00016233,2]
[340653573,1729603840406,-202.483924,0.00016233,2]
[340653574,1729603840416,-181.409574,0.00016233,2]
[340653575,1729603840425,-181.409574,0.00016233,2]
[340653576,1729603840434,-37397.8976245,0.00016234,2]
[340653577,1729603840444,-242620.08098881,0.00016234,2]
[340653588,1729603843245,-181.409574,0.00016233,2]
[340653589,1729603843254,-1682.64501194,0.00016234,2]
[340653590,1729603843312,-181.409574,0.00016233,2]
[340653591,1729603843322,-2241.91978376,0.00016234,2]
[340653597,1729603845882,-301.24211674,0.00016234,2]
[340653598,1729603917313,769.21,0.00010959,2]
[340653600,1729603952579,180.8399,0.00022,60]
[340653687,1729605038507,-195.0,0.00013973,2]
[340653688,1729605038517,-361.0,0.00013973,2]
[340653689,1729605038526,-1041.87232015,0.00014443,2]
[340653700,1729605040221,-1360.32436165,0.00014443,2]
[340653701,1729605040231,-597.87232014,0.00014512,2]
[340653702,1729605040242,-300.0,0.00014635,2]
[340653703,1729605040252,-300.0,0.00014635,2]
[340653704,1729605040263,-24900.0,0.00014636,2]
[340653705,1729605040273,-465.00002807,0.00015647,2]
[340653706,1729605040282,-892.1139542,0.00015855,2]
[340653707,1729605040291,-617.68259743,0.00015855,2]
[340653708,1729605040304,-250.0,0.0001589,2]
[340653709,1729605040314,-2109.80386264,0.00016012,2]
[340653710,1729605040324,-420.0,0.00016023,2]
[340653711,1729605040335,-1000.0,0.00016027,2]
[340653712,1729605040345,-500.0,0.00016055,2]
[340653713,1729605040355,-6291.91482068,0.00016077,2]
[340653714,1729605040364,-7525.1418919,0.0001608,2]
[340653715,1729605040374,-186989.488123,0.00016091,2]
[340653716,1729605040383,-67524.9056491,0.00016091,2]
[340653717,1729605040393,-420.0,0.00016099,2]
[340653718,1729605040404,-208986.4640293,0.00016101,2]
[340653719,1729605040416,-156638.00623063,0.00016101,2]
[340653734,1729605043639,-2370.5689838,0.00016101,2]
[340653735,1729605043651,-617.118625,0.00016101,2]
[340653744,1729605046161,-6693.3006252,0.00016101,2]
[340653745,1729605046173,-1565.28798229,0.00016101,2]
[340653782,1729606232405,-2623.31834823,0.00013797,2]
[340653807,1729606240385,-22276.68165177,0.00013797,2]
[340653808,1729606240396,-400.0,0.00013973,2]
[340653809,1729606240406,-300.0,0.00014518,2]
[340653810,1729606240416,-300.0,0.00014518,2]
[340653811,1729606240425,-164.0,0.0001477,2]
[340653812,1729606240435,-597.87232014,0.000149,2]
[340653813,1729606240444,-471.29499496,0.000149,2]
[340653814,1729606240454,-8820.0,0.00015,2]
[340653815,1729606240464,-1000.0,0.00015,2]
[340653816,1729606240473,-8138.34755974,0.00015643,2]
[340653817,1729606240483,-250.0,0.0001589,2]
[340653818,1729606240493,-420.0,0.00015897,2]
[340653819,1729606240503,-617.68259743,0.00015965,2]
[340653820,1729606240513,-18698.9488123,0.00015966,2]
[340653821,1729606240523,-141457.623355,0.00015966,2]
[340653822,1729606240534,-420.0,0.0001597,2]
[340653823,1729606240544,-2164.5974686,0.00015973,2]
[340653824,1729606240553,-74105.99290381,0.00015976,2]
[340653825,1729606240563,-1769.98126115,0.00015991,2]
[340653826,1729606240573,-256.543,0.00015994,2]
[340653827,1729606240583,-6291.91482068,0.00015999,2]
[340653828,1729606240593,-394.45893361,0.00016,2]
[340653829,1729606240602,-5000.0,0.00016,2]
[340653830,1729606240611,-500.0,0.00016055,2]
[340653831,1729606240621,-74795.7952491,0.00016071,2]
[340653832,1729606240631,-140478.65234817,0.00016071,2]
[340653833,1729606240649,-5132.80714445,0.00016071,2]
[340653834,1729606240662,-2778.97292206,0.00016071,2]
[340653835,1729606240674,-741.90104753,0.00016071,2]
[340653836,1729606240691,-693.32025,0.00016071,2]
[340653855,1729606246377,-19875.21383199,0.00016071,2]
[340653856,1729606246388,-16439.97842917,0.00016071,2]
[340653857,1729606246400,-463.73350626,0.00016071,2]
[340653858,1729606246411,-667.5,0.00016071,2]
[340653859,1729606246422,-260.99999999,0.00016071,2]
[340653860,1729606259085,155.28,0.00010959,2]
[340653861,1729606269703,776.42,0.00010959,2]
[340653931,1729607432520,-185.53566865,0.000123,2]
[340653932,1729607432530,-300.0,0.00012499,2]
[340653933,1729607432540,-300.0,0.00012499,2]
[340653934,1729607432550,-10136.35479396,0.000125,2]
[340653935,1729607432559,-420.0,0.00013714,2]
[340653936,1729607432568,-420.0,0.00013749,2]
[340653937,1729607432578,-1450.000002,0.00013972,2]
[340653938,1729607432588,-400.0,0.00013973,2]
[340653939,1729607432598,-712.4889957,0.0001439,2]
[340653940,1729607432607,-24900.0,0.00014391,2]
[340653941,1729607432617,-440.27130414,0.000146,2]
[340653942,1729607432626,-2892.8536992,0.000147,2]
[340653943,1729607432636,-1000.0,0.000147,2]
[340653944,1729607432645,-5326.39819915,0.000148,2]
[340653945,1729607432655,-500.0,0.00015,3]
[340653946,1729607432665,-502.31,0.00015,3]
[340653947,1729607432674,-587.0,0.00015048,2]
[340653948,1729607432683,-587.0,0.00015124,2]
[340653949,1729607432693,-465.00002807,0.00015609,2]
[340653950,1729607432702,-64785.8529581,0.0001569,2]
[340653951,1729607432713,-15216.4086967,0.0001569,2]
[340653952,1729607432722,-8891.17465365,0.00015697,2]
[340653953,1729607432732,-17941.683449,0.000157,2]
[340653954,1729607432741,-128012.95078499,0.000157,2]
[340653955,1729607432751,-153.0,0.00015726,2]
[340653956,1729607432762,-1997.45196714,0.0001578,2]
[340653957,1729607432772,-153.0,0.000158,2]
[340653958,1729607432781,-26281.89447077,0.00015856,2]
[340653959,1729607432795,-6111.03200833,0.00015856,2]
[340653960,1729607432805,-7608.20434834,0.00015856,2]
[340653961,1729607432815,-161964.632395,0.00015863,2]
[340653962,1729607432824,-38041.0217417,0.00015863,2]
[340653963,1729607432833,-46056.19095354,0.00015866,2]
[340653964,1729607432843,-159.04466182,0.00015873,2]
[340653965,1729607432853,-500.0,0.00015873,2]
[340653966,1729607432862,-500.0,0.00015873,2]
[340653967,1729607432872,-500.0,0.00015873,2]
[340653968,1729607432881,-500.0,0.00015873,2]
[340653969,1729607432890,-416.65149735,0.00015873,2]
[340653970,1729607432899,-500.0,0.00015873,2]
[340653971,1729607432908,-500.0,0.00015873,2]
[340653972,1729607432917,-500.0,0.00015873,2]
[340653973,1729607432927,-500.0,0.00015873,2]
[340653974,1729607432936,-526.00497442,0.00015873,2]
[340653975,1729607432945,-500.0,0.00015873,2]
[340653976,1729607432954,-500.0,0.00015873,2]
[340653977,1729607432963,-150.10760463,0.00015873,2]
[340653978,1729607432973,-573.40670331,0.00015873,2]
[340653979,1729607432982,-161.27778171,0.00015873,2]
[340653980,1729607432992,-500.0,0.00015873,2]
[340653981,1729607433001,-500.0,0.00015873,2]
[340653982,1729607433014,-500.0,0.00015873,2]
[340653983,1729607433026,-208986.4640293,0.00015873,2]
[340653984,1729607433035,-151.0,0.00015873,2]
[340653985,1729607433044,-151.0,0.00015873,2]
[340653986,1729607433055,-788.078115,0.00015873,2]
[340653987,1729607433064,-788.078115,0.00015873,2]
[340653988,1729607433074,-151.0,0.00015873,2]
[340653989,1729607433085,-151.0,0.00015873,2]
[340653990,1729607433094,-151.0,0.00015873,2]
[340653991,1729607433103,-176.308721,0.00015873,2]
[340653992,1729607433112,-151.0,0.00015873,2]
[340653993,1729607433122,-151.0,0.00015873,2]
[340653994,1729607433131,-999.999999,0.0001588,2]
[340653995,1729607433141,-250.0,0.0001589,2]
[340653996,1729607433151,-153.0,0.000159,2]
[340653997,1729607433161,-153.0,0.000159,2]
[340653998,1729607433170,-1000.0,0.00015932,2]
[340653999,1729607433180,-22824.613045,0.0001598,2]
[340654000,1729607433189,-6291.91482068,0.00015988,2]
[340654001,1729607433199,-2276.64295654,0.00015991,2]
[340654002,1729607433208,-10000.0,0.00015997,2]
[340654003,1729607433217,-150.112233,0.00016,2]
[340654004,1729607433227,-153.0,0.00016,2]
[340654005,1729607433236,-5000.0,0.00016,2]
[340654006,1729607433246,-153.926,0.0001602,2]
[340654007,1729607433256,-151.0,0.00016021,2]
[340654008,1729607433268,-151.0,0.00016021,2]
[340654009,1729607433278,-788.078115,0.00016021,2]
[340654010,1729607433291,-788.078115,0.00016021,2]
[340654011,1729607433301,-152.492781,0.00016021,2]
[340654012,1729607433310,-151.0,0.00016021,2]
[340654013,1729607433320,-151.0,0.00016021,2]
[340654014,1729607433331,-68473.8391351,0.00016022,2]
[340654015,1729607433340,-223.127259,0.00016032,2]
[340654016,1729607433351,-223.127259,0.00016032,2]
[340654017,1729607433362,-305.592043,0.00016032,2]
[340654018,1729607433372,-305.592043,0.00016032,2]
[340654019,1729607433381,-228.641214,0.00016032,2]
[340654020,1729607433390,-228.641214,0.00016032,2]
[340654021,1729607433400,-151.0,0.00016032,2]
[340654022,1729607433410,-220.943882,0.00016032,2]
[340654023,1729607433419,-840.25047,0.00016032,2]
[340654024,1729607433428,-840.25047,0.00016032,2]
[340654025,1729607433438,-1155.485186,0.00016032,2]
[340654026,1729607433447,-1155.485186,0.00016032,2]
[340654027,1729607433458,-151.0,0.00016032,2]
[340654028,1729607433468,-151.0,0.00016032,2]
[340654029,1729607433477,-151.0,0.00016032,2]
[340654030,1729607433487,-151.0,0.00016032,2]
[340654031,1729607433496,-151.0,0.00016032,2]
[340654032,1729607433505,-401.391295,0.00016032,2]
[340654033,1729607433517,-473.763715,0.00016032,2]
[340654034,1729607433526,-281.001937,0.00016032,2]
[340654035,1729607433535,-401.391295,0.00016032,2]
[340654036,1729607433544,-473.763715,0.00016032,2]
[340654037,1729607433554,-281.001937,0.00016032,2]
[340654038,1729607433563,-1049.883201,0.00016032,2]
[340654039,1729607433573,-1049.883201,0.00016032,2]
[340654040,1729607433583,-151.0,0.00016032,2]
[340654041,1729607433592,-1362.058989,0.00016032,2]
[340654042,1729607433601,-1362.058989,0.00016032,2]
[340654043,1729607433610,-197.663788,0.00016032,2]
[340654044,1729607433619,-197.663788,0.00016032,2]
[340654045,1729607433629,-2273.458774,0.00016032,2]
[340654046,1729607433638,-151.0,0.00016032,2]
[340654047,1729607433647,-176.858881,0.00016032,2]
[340654048,1729607433657,-2273.458774,0.00016032,2]
[340654049,1729607433667,-151.0,0.00016032,2]
[340654050,1729607433676,-176.858881,0.00016032,2]
[340654051,1729607433686,-3082.741677,0.00016032,2]
[340654052,1729607433696,-3082.741677,0.00016032,2]
[340654053,1729607433705,-2268.274185,0.00016032,2]
[340654054,1729607433714,-2268.274185,0.00016032,2]
[340654055,1729607433724,-1152.87729,0.00016032,2]
[340654056,1729607433733,-1152.87729,0.00016032,2]
[340654057,1729607433742,-386.850292,0.00016032,2]
[340654058,1729607433752,-386.850292,0.00016032,2]
[340654059,1729607433762,-151.0,0.00016032,2]
[340654060,1729607433772,-151.0,0.00016032,2]
[340654061,1729607433781,-546.93219,0.00016032,2]
[340654062,1729607433791,-546.93219,0.00016032,2]
[340654063,1729607433800,-223.127259,0.00016033,2]
[340654064,1729607433810,-223.127259,0.00016033,2]
[340654065,1729607433820,-305.592043,0.00016033,2]
[340654066,1729607433830,-305.592043,0.00016033,2]
[340654067,1729607433839,-228.641214,0.00016033,2]
[340654068,1729607433849,-228.641214,0.00016033,2]
[340654069,1729607433860,-151.0,0.00016033,2]
[340654070,1729607433869,-840.25047,0.00016033,2]
[340654071,1729607433878,-840.25047,0.00016033,2]
[340654072,1729607433888,-1155.485186,0.00016033,2]
[340654073,1729607433897,-1155.485186,0.00016033,2]
[340654074,1729607433908,-151.0,0.00016033,2]
[340654075,1729607433917,-151.0,0.00016033,2]
[340654076,1729607433926,-3000.0,0.00016033,2]
[340654077,1729607433935,-3000.0,0.00016033,2]
[340654078,1729607433944,-3000.0,0.00016033,2]
[340654079,1729607433954,-151.0,0.00016033,2]
[340654080,1729607433963,-3000.0,0.00016033,2]
[340654081,1729607433973,-3000.0,0.00016033,2]
[340654082,1729607433983,-3000.0,0.00016033,2]
[340654083,1729607433992,-3000.0,0.00016033,2]
[340654084,1729607434002,-3000.0,0.00016033,2]
[340654085,1729607434014,-3000.0,0.00016033,2]
[340654086,1729607434024,-3000.0,0.00016033,2]
[340654087,1729607434033,-3000.0,0.00016033,2]
[340654088,1729607434043,-3000.0,0.00016033,2]
[340654089,1729607434052,-3000.0,0.00016033,2]
[340654090,1729607434062,-3000.0,0.00016033,2]
[340654091,1729607434071,-3000.0,0.00016033,2]
[340654092,1729607434081,-3000.0,0.00016033,2]
[340654093,1729607434090,-151.0,0.00016033,2]
[340654094,1729607434099,-3000.0,0.00016033,2]
[340654095,1729607434109,-3000.0,0.00016033,2]
[340654096,1729607434118,-3000.0,0.00016033,2]
[340654097,1729607434127,-2828.459972,0.00016033,2]
[340654098,1729607434136,-151.0,0.00016033,2]
[340654099,1729607434145,-401.391295,0.00016033,2]
[340654100,1729607434155,-473.763715,0.00016033,2]
[340654101,1729607434164,-281.001937,0.00016033,2]
[340654102,1729607434173,-401.391295,0.00016033,2]
[340654103,1729607434183,-473.763715,0.00016033,2]
[340654104,1729607434193,-281.001937,0.00016033,2]
[340654105,1729607434202,-1049.883201,0.00016033,2]
[340654106,1729607434211,-1049.883201,0.00016033,2]